Cogmind - Beta 13 @@@ ROGUE MODE // 2024.06.18 @ 18:14:59 Player: MarKhan Result: Destroyed by H-61 Shepherd with Heavy Assault Cannon Performance ------------- Evolutions (2) 1000 Regions Visited (3) 600 Robots Destroyed (0) 0 Value Destroyed (0) 0 Prototype IDs (1) 20 Alien Tech Used (0) 0 Bonus (470) 470 TOTAL SCORE: 2090 Bonus ------- Pacifist 470 Cogmind --------- Core Integrity 0/550 Matter 295/300 Energy 76/100 System Corruption 0% Temperature Cool (38) Movement Hovering (50) Location -8/Materials Parts ------- > --- POWER (1) -------- (None) > --- PROPULSION (4) --- Aerolev Unit > --- UTILITY (4) ------ Visual Processing Unit Signal Interpreter > --- WEAPON (2) ------- (None) > --- INVENTORY (5) ---- Light Nuclear Core Small Storage Unit High-capacity Matter Pod (151) Hardened Light Armor Plating Flak Cannon Peak State ------------ > --- POWER ------------ (None) > --- PROPULSION ------- (None) > --- UTILITY ---------- Visual Processing Unit Sensor Array Signal Interpreter Hacking Suite > --- WEAPON ----------- (None) > --- INVENTORY -------- Light Nuclear Core Small Storage Unit High-capacity Matter Pod Hardened Light Armor Plating Flak Cannon [Rating: 8] Favorites ----------- Power Light Ion Engine Engine Light Ion Engine Propulsion Aerolev Unit Hover Unit Aerolev Unit Utility Sensor Array Device Sensor Array Processor Signal Interpreter Hackware Hacking Suite Weapon Mining Laser Special Weapon Mining Laser Build | -11 -10 -9 -8 ------- Run | Yrd Mat Mat Mat Slots Evolved 4 | . . 2 2 Power . | . . . . Propulsion 2 | . . 1 1 Utility 2 | . . 1 1 Weapon . | . . . . Parts Attached 10 | . 3 3 4 Power 1 | . . 1 . Engine 1 | . . 1 . Core . | . . . . Reactor . | . . . . Propulsion 2 | . . . 2 Treads . | . . . . Leg . | . . . . Wheel . | . . . . Hover 2 | . . . 2 Flight . | . . . . Utility 6 | . 2 2 2 Device 3 | . 2 . 1 Storage . | . . . . Processor 2 | . . 2 . Hackware 1 | . . . 1 Protection . | . . . . Artifact . | . . . . Weapon 1 | . 1 . . Energy Gun . | . . . . Energy Cannon . | . . . . Ballistic Gun . | . . . . Ballistic Cannon . | . . . . Launcher . | . . . . Special Weapon 1 | . 1 . . Impact Weapon . | . . . . Slashing Weapon . | . . . . Piercing Weapon . | . . . . Special Melee Weapon . | . . . . Unidentified Prototypes 1 | . . . 1 Parts Lost 5 | . . 2 3 Power . | . . . . Propulsion 1 | . . . 1 Utility 3 | . . 1 2 Weapon 1 | . . 1 . Highest Loss Streak 3 | . . 2 3 To Critical Strikes . | . . . . Average Slot Usage (%) 25 | . 24 22 31 Device 12 | . 17 9 5 Processor 6 | . . 4 18 Hackware 1 | . . . 5 Special Weapon 4 | . 6 6 . Naked Turns 62 | . 44 18 . Heaviest Build 4 | . 3 3 4 Greatest Support 8 | 3 3 3 8 Greatest Overweight (x) 1 | . . . 1 Average Overweight (x) . | . . . . Largest Inventory Capacity 5 | 5 5 5 5 Average Capacity 5 | 5 5 5 5 Most Carried 5 | 2 3 5 5 Average Carried 3 | 1 2 4 4 Final Capacity 5 | 5 5 5 5 Final Carried 5 | 2 3 5 5 Class Distribution -------------------- 100% | Mutant Dominant Class ---------------- Mutant | -10/Materials Mutant | -9/Materials Mutant | -8/Materials Resources | -11 -10 -9 -8 ----------- Run | Yrd Mat Mat Mat Matter Collected 414 | 124 . 17 273 Remotely . | . . . . Salvage Created . | . . . . Parts . | . . . . Haulers Intercepted . | . . . . Recyclers Shooed . | . . . . Parts Field Recycled . | . . . . Retrieved Matter . | . . . . Parts Self-Destructed . | . . . . Prevented . | . . . . Kills | -11 -10 -9 -8 ------- Run | Yrd Mat Mat Mat Combat Hostiles Destroyed . | . . . . Classes Destroyed . | . . . . Best Kill Streak . | . . . . Combat Bots Only . | . . . . Max Kills in Single Turn . | . . . . Gunslinging . | . . . . Exploded . | . . . . Melee . | . . . . Uniques/NPCs Destroyed . | . . . . Combat | -11 -10 -9 -8 -------- Run | Yrd Mat Mat Mat Hostile Shots Fired 112 | . . 56 56 Missed 33 | . . 13 20 Damage Taken 1148 | . . 421 727 Core 881 | . . 311 570 Absorbed by Shields . | . . . . Core Remaining (%) 74 | 100 100 22 . Volleys Fired 5 | . 5 . . Largest 1 | . 1 . . Hottest 100 | . 100 . . Shots Fired 5 | . 5 . . Gun . | . . . . Cannon . | . . . . Launcher . | . . . . Special 5 | . 5 . . Kinetic . | . . . . Thermal 5 | . 5 . . Explosive . | . . . . Electromagnetic . | . . . . Robot Hit Streak . | . . . . Robot Miss Streak . | . . . . Penetration Max . | . . . . Secondary Targets . | . . . . Shots Hit Robots . | . . . . Core Hits . | . . . . Critical Kills . | . . . . Critical Parts Destroyed . | . . . . Critical Strikes . | . . . . Melee Attacks . | . . . . Impact . | . . . . Slashing . | . . . . Piercing . | . . . . Sneak Attacks . | . . . . Combat Hostiles . | . . . . Follow-up Attacks . | . . . . Damage Inflicted 7 | . . . 7 Guns . | . . . . Cannons . | . . . . Explosions . | . . . . Melee . | . . . . Ramming 7 | . . . 7 Kinetic . | . . . . Thermal . | . . . . Explosive . | . . . . Electromagnetic . | . . . . Impact . | . . . . Slashing . | . . . . Piercing . | . . . . Highest Corruption . | . . . . Average Corruption . | . . . . Corruption Purged . | . . . . Corruption Blocked . | . . . . Overload Shots . | . . . . Overflow Damage . | . . . . Projectiles . | . . . . Explosions . | . . . . Melee . | . . . . Knockbacks . | . . . . Impact . | . . . . Kinetic . | . . . . Secondary . | . . . . Self-Inflicted Damage 3 | . . . 3 Shots . | . . . . Rammed 2 | . . . 2 Targets Rammed 2 | . . . 2 Kicked . | . . . . Crushed . | . . . . Highest Temperature 42 | . 25 . 42 Average Temperature 23 | . 25 . 21 Received Heat Transfer 315 | . . 45 270 Siege Activations . | . . . . Robots Corrupted . | . . . . Combat Hostiles . | . . . . Parts Fried . | . . . . Impact Corruptions . | . . . . Robots Melted . | . . . . Combat Hostiles . | . . . . Parts Melted . | . . . . Heat Transferred . | . . . . Parts Sabotaged . | . . . . Parts Stolen . | . . . . Parts Stripped . | . . . . Power Chain Reactions . | . . . . Alert | -11 -10 -9 -8 ------- Run | Yrd Mat Mat Mat Peak Influence 195 | . 57 39 195 Initial 24 | . . 24 14 Average 46 | . 33 34 85 Maximum Alert Level . | . . . . Low Security (%) 100 | 100 100 100 100 Level 1 . | . . . . Level 2 . | . . . . Level 3 . | . . . . Level 4 . | . . . . Level 5 . | . . . . High Security . | . . . . Max Security . | . . . . Squads Dispatched 3 | . . . 3 Investigation . | . . . . Extermination . | . . . . Reinforcement 3 | . . . 3 Assault . | . . . . Garrison . | . . . . Intercept . | . . . . Searches Triggered . | . . . . Construction Impeded . | . . . . Haulers Reinforced . | . . . . Active Scanning Responses . | . . . . Cargo Convoy Interrupts . | . . . . Stealth | -11 -10 -9 -8 --------- Run | Yrd Mat Mat Mat Distress Signals 2 | . . . 2 Communications Jammed . | . . . . Distress Signals . | . . . . Times Spotted 34 | . 1 5 28 Peak Tracking Total 22 | . 1 5 22 Tactical Retreats 3 | . . . 3 Traps | -11 -10 -9 -8 ------- Run | Yrd Mat Mat Mat Traps Triggered . | . . . . Indirectly . | . . . . Trap Hack Attempts . | . . . . Triggered . | . . . . Disarmed . | . . . . Reprogrammed . | . . . . Reused . | . . . . Traps Extracted . | . . . . Installed . | . . . . Triggered . | . . . . Machines | -11 -10 -9 -8 ---------- Run | Yrd Mat Mat Mat Machines Disabled . | . . . . Max in Single Turn . | . . . . Machines Repaired . | . . . . Machines Dismantled . | . . . . Machines Sabotaged . | . . . . Overloaded Fab Kills . | . . . . Hacking | -11 -10 -9 -8 --------- Run | Yrd Mat Mat Mat Machines Accessed 8 | . 5 . 3 Terminals 6 | . 4 . 2 Fabricators . | . . . . Repair Stations 1 | . 1 . . Recycling Units 1 | . . . 1 Scanalyzers . | . . . . Garrison Access . | . . . . Total Hacks 18 | . 13 . 5 Successful 12 | . 9 . 3 Failed 6 | . 4 . 2 Catastrophic 1 | . 1 . . Database Lockouts . | . . . . Manual 12 | . 8 . 4 Terminals 16 | . 12 . 4 Fabricators . | . . . . Repair Stations 1 | . 1 . . Recycling Units 1 | . . . 1 Scanalyzers . | . . . . Garrison Access . | . . . . Terminal Hacks 6 | . 5 . 1 Branch Access Points 1 | . 1 . . Locate Traps 1 | . 1 . . Maintenance Status 1 | . 1 . . Security Status 1 | . 1 . . Recall Reinforcements 1 | . . . 1 Zone Layout 1 | . 1 . . Fabricator Hacks . | . . . . Repair Station Hacks . | . . . . Recycling Unit Hacks . | . . . . Scanalyzer . | . . . . Garrison Access Hacks . | . . . . Unauthorized Hacks 6 | . 4 . 2 Terminals 4 | . 3 . 1 Botnet 4 | . 3 . 1 Fabricators . | . . . . Repair Stations 1 | . 1 . . Mechanics 1 | . 1 . . Recycling Units 1 | . . . 1 Recyclers 1 | . . . 1 Scanalyzers . | . . . . Garrison Access . | . . . . Data Cores Recovered . | . . . . Used . | . . . . Hacking Detections 6 | . 4 . 2 Full Trace Events . | . . . . Feedback Events . | . . . . Feedback Blocked . | . . . . Robot Schematics Acquired . | . . . . Robots Built . | . . . . Authchips . | . . . . Time . | . . . . Total Robot Build Rating . | . . . . Part Schematics Acquired . | . . . . Parts Built . | . . . . Authchips . | . . . . Time . | . . . . Total Part Build Rating . | . . . . Parts Repaired . | . . . . Time . | . . . . Parts Recycled . | . . . . Recycled Matter . | . . . . Retrieved Matter . | . . . . Retrieved Components . | . . . . Parts Scanalyzed . | . . . . Part Schematics Acquired . | . . . . Parts Damaged . | . . . . Bothacking | -11 -10 -9 -8 ------------ Run | Yrd Mat Mat Mat Used RIF Installer . | . . . . Robots Hacked . | . . . . Non-combat . | . . . . Combat . | . . . . Robot Hacks Applied . | . . . . Relay Couplers Released . | . . . . Fabnet Peak Effective % . | . . . . Robots Rewired . | . . . . Allies Hacked . | . . . . Hacks Repelled . | . . . . Allies | -11 -10 -9 -8 -------- Run | Yrd Mat Mat Mat Total Allies . | . . . . Largest Group . | . . . . Highest-Rated Group . | . . . . Highest-Rated Ally . | . . . . Total Orders . | . . . . Ally Attacks . | . . . . Total Damage . | . . . . Kills . | . . . . Allies Corrupted . | . . . . Allies Melted . | . . . . Intel | -11 -10 -9 -8 ------- Run | Yrd Mat Mat Mat Robot Analysis Total . | . . . . Derelict Logs Recovered . | . . . . Drone Launches . | . . . . Drone Recoveries . | . . . . Exploration | -11 -10 -9 -8 ------------- Run | Yrd Mat Mat Mat Turns Passed 352 | 12 150 91 99 Spaces Moved 594 | 20 243 166 165 Core 590 | 20 243 166 161 Treads . | . . . . Legs . | . . . . Wheels . | . . . . Hover 4 | . . . 4 Flight . | . . . . Fastest Speed 50 | 50 50 50 50 Average Speed 51 | 50 50 50 53 Slowest Speed 100 | 50 50 50 100 Overloaded Moves . | . . . . Propulsion Burnouts . | . . . . Robots Hopped . | . . . . Cave-ins Triggered . | . . . . Exploration Rate (%) 23 | 3 50 21 20 Regions Visited 3 Branch Regions . Pre-discovered Areas . | . . . . Known Exits Taken 1 | . . 1 . Unknown Exits Taken 2 | 1 1 . . Scrap Searched . | . . . . Spaces Dug 5 | . 5 . . Terrain Destroyed 5 | . 5 . . Melee . | . . . . Projectile 5 | . 5 . . AOE . | . . . . Terrain Rammed . | . . . . Walls Destroyed . | . . . . Machines Disabled . | . . . . Actions | -11 -10 -9 -8 --------- Run | Yrd Mat Mat Mat Total 624 | 21 254 174 175 Wait 3 | . 3 . . Move 591 | 19 242 165 165 Hop . | . . . . Pick Up 8 | 2 1 3 2 Fast Attach 9 | . 3 3 3 Attach 1 | . . . 1 Detach 1 | . . 1 . Swap . | . . . . Drop 4 | . . 2 2 Fire 5 | . 5 . . Melee . | . . . . Ram 2 | . . . 2 Kick . | . . . . Crush . | . . . . Escape Stasis . | . . . . Rewire . | . . . . Trap . | . . . . Miscellaneous . | . . . . Route ------- -11/Scrapyard -10/Materials (discovered 3 exits: [*Mat] / Min x2) -9/Materials -8/Materials History --------- Turn | Location | Event 5 | -11/Scrapyard | Discovered new exit (range 15) 13 | -11/Scrapyard | Entered Materials 102 | -10/Materials | Identified exit to Mines 156 | -10/Materials | Discovered new exit (range 3) 163 | -10/Materials | Entered another Materials area 163 | -9/Materials | Evolved 2 slots: Propulsion x1, Utility x1 238 | -9/Materials | Core integrity fell below 50% 251 | -9/Materials | Discovered new exit (range 8) 254 | -9/Materials | Identified exit to Materials 254 | -9/Materials | Entered another Materials area 254 | -8/Materials | Evolved 2 slots: Propulsion x1, Utility x1 326 | -8/Materials | Build established: Mutant 346 | -8/Materials | Core integrity fell below 50% 350 | -8/Materials | Core integrity fell below 20% 353 | -8/Materials | Destroyed by H-61 Shepherd with Heavy Assault Cannon Last Messages --------------- >>Trojan(Recyclers) Trojan loaded successfully. Testing... Recycler tracking enabled and active. 00345_ Knocked back. 00346_ T-07 Excavator is excavating. 00347_ Hacking Suite destroyed. 00347_ A-02 Transporter suffers critical hit (Burn). 00347_ A-02 Transporter destroyed. 00349_ Acquired Prototype Hover Unit. 00349_ Identified Aerolev Unit. 00349_ Critical hit (Burn: +37). 00349_ Knocked back. 00350_ Acquired 62 matter. 00351_ Acquired Aerolev Unit. 00351_ Penetrated by Slug. 00351_ Aerolev Unit destroyed. 00351_ Knocked back. 00353_ Penetrated by Slug. Map ----- +----------------------------------------------------+ | ?????????????# #???? ?????# #????????? | | ?????????????# #??? ????# #????????? | | ?????????????# #??? ????# #????????? | | ?????????????# #??" """???# """ " " #????????? | | ?????????????# #??T """???# """ "G" #????????? | | ?????????????# #?"" """ ??# """ " #????????? | | ????????????## ## ??# #????????? | | ????????????# ###+#############/############## | | ?????""" # | | ???# ["+% T* | | ???# """ # | | ?????""" # ########+########/#############+ | | ?????""" ?#######??# [ #?# #?#* | | ????? ! ??????????# #?# """ """ #?# | | ????######???????????# #?# """ """ #?# | | ?????????????????????# #?# """ """ #?# "T" | | ?????????????????????# """ #?# """ """ #?# """ | | ?????????????????????# "Y" """ #?# """ """ #?# | | ?????????????????????# """ """ #?# #?##### | | ?????????????????????# % #?# #?????? | | ?????????????????????########+##############?????? | | ???????????????###+##????# #???????????????? | | ???????????????# ##### g ######??????????? | | ????????+####### g k u #??????????? | | ??????? k Y [ggg H g #??????????? | | ?????????????### %u @ g #??????????? | | ???????????????# ] ####[ ## #??????????? | | ???????????????#####????## #? #??????????? | | ?????????????????????????####;####?? #?????????? | | ?????????????????????????????? ????? ##?????????? | | ???????????????????????????????""?????#??????????? | | ????????????????????????????????""#??????????????? | | ?????????????????????????????????"#??????????????? | | ?????????????????????????????????????????????????? | | ?????????????????????????????????????????????????? | | ?????????????????????????????????????????????????? | | ?????????????????????????????????????????????????? | | ?????????????????????????????????????????????????? | | ?????????????????????????????????????????????????? | | ?????????????????????????????????????????????????? | | ?????????????????????????????????????????????????? | | ?????????????????????????????????????????????????? | | ?????????????????????????????????????????????????? | | ?????????????????????????????????????????????????? | | ?????????????????????????????????????????????????? | | ?????????????????????????????????????????????????? | | ?????????????????????????????????????????????????? | | ?????????????????????????????????????????????????? | | ?????????????????????????????????????????????????? | | ?????????????????????????????????????????????????? | +----------------------------------------------------+ Best States ------------- Heat Dissipation 31 Energy Generation 10 Energy Capacity 125 Matter Stores 300 Matter Capacity 300 Sight Range 18 Robot Scan Range 14 Terrain Scan Density 10 Evasion (%) 53 Offensive Hacking 10 Item Schematics ----------------- None Robot Schematics ------------------ None Fabricated ------------ Nothing Alien Tech Used ----------------- None Achievements -------------- None Challenges ------------ None Game ------ Seed WeaponCloakingNanovents Manual? 0 Play Time 00:12:27 Cumulative 45.0 hours Start 2024.06.18 @ 18:05:02 End 2024.06.18 @ 18:14:59 Sessions 1 Manual Loads 0 Difficulty Rogue Special Mode None Game No. 41 Rogue 41 Adventurer 0 Explorer 0 Win Type - Total 1 Types 1/0/0/0/0/0/0/0/0 Lore% 35 Gallery% 37 Achievement% 33 Wizard Run 0 Options --------- Layout 1 ASCII 0 Keyboard 1 Movement Arrows Keybinds 0 Fullscreen 2 Font 24/Smallcaps Map View 50x35 Zoom Use 0% Tactical HUD 1 Map Filters NONE Filters NONE Steam 1 RUN: a0ec9194-24aa-4703-9475-b52fc1165d08